bitfinex/quotes_ETHUSD_20240731
["timestamp","ask_amount","ask_price","bid_price","bid_amount"]
[1722418762560,9.9716,3330.0,3329.3,3.00358]
[1722418762761,1.107,3329.8,3329.3,3.00358]
[1722418763072,7.48,3330.0,3329.6,3.0033]
[1722418763370,1.107,3330.1,3329.6,3.0033]
[1722418763869,1.107,3329.9,3329.4,5.52424446]
[1722418764362,1.107,3329.9,3329.5,3.88684895]
[1722418765555,1.107,3329.9,3329.5,3.00343]
[1722418768466,1.107,3329.9,3329.4,2.4607]
[1722418769044,1.107,3329.9,3329.4,5.46419]
[1722418770376,1.107,3329.9,3329.5,3.00344]
[1722418770579,1.107,3329.9,3329.5,6.00682]
[1722418770787,1.107,3329.9,3329.5,3.00338]
[1722418771299,1.107,3329.9,3329.6,3.00331]
[1722418772255,1.107,3329.9,3329.7,3.00325]
[1722418772460,2.4916,3330.2,3329.8,3.00317]
[1722418772669,3.5986,3330.2,3329.8,3.00317]
[1722418772991,3.5986,3330.2,3329.6,3.00328]
[1722418773141,3.5986,3330.2,3329.6,3.64402493]
[1722418773492,1.107,3330.0,3329.7,3.0032]
[1722418774343,10.48265,3330.4,3329.9,3.00308]
[1722418774344,7.48,3330.4,3329.9,3.00308]
[1722418774568,8.587,3330.4,3329.8,5.40532]
[1722418774787,8.587,3330.4,3329.9,3.00309]
[1722418775347,7.48,3330.4,3330.0,3.00299]
[1722418775944,1.107,3330.3,3330.0,3.00299]
[1722418776849,1.107,3330.3,3329.8,5.4053]
[1722418777084,1.107,3330.3,3329.8,3.00316]
[1722418777261,1.107,3330.1,3329.8,3.00316]
[1722418778595,1.107,3330.1,3329.6,3.64402493]
[1722418778796,1.107,3330.1,3329.8,3.00317]
[1722418780658,2.276,3330.3,3329.8,3.00317]
[1722418780857,1.107,3330.2,3329.9,3.00308]
[1722418781823,1.107,3330.2,3329.7,3.60451549]
[1722418783104,1.107,3330.2,3329.7,6.60772549]
[1722418783863,1.107,3330.2,3329.8,3.00316]
[1722418785185,1.107,3330.2,3329.8,3.66394555]
[1722418785978,1.107,3330.2,3329.8,3.66391555]
[1722418786302,1.107,3330.2,3329.9,3.00302]
[1722418790374,1.107,3330.2,3329.5,2.3693]
[1722418790573,1.107,3330.2,3329.5,2.6368665]
[1722418790872,1.107,3330.2,3329.8,3.00312]
[1722418792334,1.107,3330.0,3329.6,3.00331]
[1722418792482,1.107,3330.0,3329.5,3.00339]
[1722418792989,1.107,3329.8,3329.4,3.00354]
[1722418793192,1.107,3329.8,3329.1,3.00373]
[1722418793193,1.107,3329.6,3329.5,3.0]
[1722418793722,1.107,3329.6,3329.2,3.0037]
[1722418793723,1.107,3329.6,3329.3,3.0]
[1722418794741,1.107,3329.6,3329.3,6.00362]
[1722418795387,2.2557,3329.7,3329.4,3.00351]
[1722418795588,2.2557,3329.7,3329.5,3.31804836]
[1722418796215,2.2557,3329.7,3329.5,0.31804836]
[1722418796423,2.2557,3329.7,3329.4,3.0]
[1722418801708,1.107,3329.6,3329.1,3.604163]
[1722418802007,1.107,3329.6,3329.2,3.00372]
[1722418802208,1.107,3329.6,3329.2,3.00367]
[1722418802804,1.107,3329.6,3329.4,3.00354]
[1722418803260,2.2557,3329.7,3329.4,3.00354]
[1722418806163,2.2557,3329.7,3329.2,3.00367]
[1722418806484,1.107,3329.4,3328.9,6.00394]
[1722418806685,1.107,3329.4,3329.0,3.00385]
[1722418806886,1.107,3329.4,3328.8,3.00403]
[1722418807176,1.107,3329.4,3329.0,3.00385]
[1722418808172,1.107,3329.4,3328.7,2.3508]
[1722418808377,2.4737,3329.3,3328.8,3.00402]
[1722418808670,2.4737,3329.3,3328.7,0.34578]
[1722418808868,1.107,3329.2,3328.7,0.34578]
[1722418809075,1.107,3329.2,3328.9,3.00399]
[1722418809481,1.107,3329.2,3328.9,6.00793]
[1722418809666,1.107,3329.2,3328.9,3.00394]
[1722418810250,1.107,3329.2,3328.9,3.00392]
[1722418810405,1.107,3329.2,3329.0,3.00389]
[1722418810697,1.107,3329.4,3329.0,3.00389]
[1722418811616,1.107,3329.4,3328.8,3.00401]
[1722418811753,1.107,3329.4,3328.9,3.00396]
[1722418812198,4.11055,3329.4,3328.8,0.600813]
[1722418812367,1.107,3329.2,3328.7,3.00408]
[1722418813015,1.107,3329.2,3328.6,3.00421]
[1722418813302,2.2621,3329.1,3328.6,3.00421]
[1722418814876,2.2621,3329.1,3328.4,3.00442]
[1722418814877,5.26596,3329.1,3328.4,3.00442]
[1722418815070,1.107,3329.0,3328.5,3.00435]
[1722418816708,1.107,3329.0,3328.5,3.00429]
[1722418817282,1.107,3329.0,3328.3,5.40514]
[1722418817482,1.107,3329.0,3328.4,3.00442]
[1722418818183,1.107,3329.0,3328.3,2.941214]
[1722418818184,4.11093,3329.0,3328.3,2.941214]
[1722418818531,1.107,3328.8,3328.3,3.00448]
[1722418818995,1.107,3328.8,3328.4,3.0]
[1722418819194,1.107,3328.6,3328.0,3.00474]
[1722418819395,1.107,3328.4,3328.0,3.00474]
[1722418819614,1.107,3328.6,3328.0,3.00474]
[1722418819925,1.107,3328.6,3328.0,3.847058]
[1722418821140,1.107,3328.6,3328.2,3.00459]
[1722418821539,2.4304,3328.7,3328.4,3.00439]
[1722418821825,1.107,3328.8,3328.4,3.00439]
[1722418822029,7.48,3329.2,3328.7,3.00415]
[1722418822212,2.2893,3329.3,3328.7,3.00412]
[1722418822213,3.3963,3329.3,3328.7,3.00412]
[1722418822535,6.39993,3329.3,3328.7,3.00412]
[1722418823396,3.3963,3329.3,3328.6,6.0084]
[1722418823595,3.3963,3329.3,3328.6,3.0042]
[1722418824431,3.3963,3329.3,3328.6,6.0084]
[1722418824817,3.3963,3329.3,3328.7,3.00417]
[1722418825404,1.107,3329.1,3328.7,3.00417]
[1722418827504,1.107,3329.1,3328.5,3.66164643]
[1722418827704,1.107,3328.9,3328.5,3.00429]
[1722418828892,1.107,3328.9,3328.2,3.00457]
[1722418829129,1.107,3328.9,3328.3,3.0]
[1722418829429,1.107,3328.7,3328.3,3.0]
[1722418830272,1.107,3328.7,3328.4,3.00436]
[1722418830453,1.107,3328.7,3328.3,3.0]
[1722418830765,1.107,3328.7,3328.5,3.00435]
[1722418831073,1.107,3328.9,3328.5,3.0043]
[1722418831225,1.107,3328.9,3328.6,3.00425]
[1722418832025,1.107,3328.9,3328.5,0.33]
[1722418832466,1.107,3328.9,3328.5,3.33434]
[1722418833267,1.107,3328.7,3328.4,3.00444]
[1722418833472,1.107,3328.5,3328.2,3.00456]
[1722418835377,3.4485,3328.7,3328.3,3.00453]
[1722418836331,3.4485,3328.7,3328.0,3.00474]
[1722418836332,1.107,3328.5,3328.0,3.00474]
[1722418836891,1.107,3328.5,3328.2,3.00462]
[1722418837782,1.107,3328.5,3328.1,3.00471]
[1722418837980,1.107,3328.3,3328.0,3.00478]
[1722418838856,1.107,3328.3,3327.8,3.00493]
[1722418840596,1.107,3328.3,3327.5,9.7373]
[1722418840807,1.107,3328.3,3327.8,3.00492]
[1722418841955,4.11154,3328.3,3327.6,6.00515]
[1722418842154,4.11154,3328.3,3327.6,6.0051]
[1722418842389,4.11154,3328.3,3327.7,3.00503]
[1722418842658,1.107,3328.1,3327.7,3.00503]
[1722418843164,1.107,3328.1,3327.6,6.0051]
[1722418843165,1.107,3328.1,3327.6,3.0]
[1722418843390,1.107,3328.1,3327.6,6.00515]
[1722418844199,1.107,3327.9,3327.6,6.00515]
[1722418844783,1.107,3327.9,3327.6,3.0]
[1722418845100,3.4887,3327.9,3327.5,7.47]
[1722418846590,3.4887,3327.9,3327.4,6.01055]
[1722418846802,3.4887,3327.9,3327.4,6.911624]
[1722418847094,3.4887,3327.9,3327.4,6.911634]
[1722418847935,3.4887,3327.9,3327.4,3.906344]
[1722418848230,1.107,3327.7,3327.2,6.00544]
[1722418848408,1.107,3327.7,3327.2,3.00544]
[1722418848591,1.107,3327.5,3327.2,3.00544]
[1722418848786,1.107,3327.5,3326.9,2.3344]
[1722418848787,1.107,3327.3,3326.6,2.3608]
[1722418849041,1.107,3327.3,3327.0,3.0057]
[1722418849204,1.107,3327.3,3327.0,3.00565]
[1722418849408,1.107,3327.1,3326.8,3.00588]
[1722418849588,1.107,3327.3,3326.9,3.00574]
[1722418849892,2.2745,3327.4,3327.0,3.00565]
[1722418850092,1.107,3327.4,3327.1,3.00557]
[1722418850435,1.107,3327.4,3326.9,3.00573]
[1722418851106,1.107,3327.4,3327.0,3.00571]
[1722418851306,1.107,3327.4,3327.0,3.306281]
[1722418851531,1.107,3327.6,3327.2,3.00546]
[1722418851741,3.00486,3328.0,3327.4,3.00534]
[1722418851742,1.107,3327.8,3327.4,3.00534]
[1722418852099,5.35206,3328.0,3327.4,3.00534]
[1722418852100,2.3472,3328.0,3327.4,3.00534]
[1722418852295,3.4542,3328.0,3327.6,3.00516]
[1722418852839,1.107,3327.8,3327.5,3.00524]
[1722418853396,3.4542,3328.0,3327.6,3.00516]
[1722418854069,1.107,3327.8,3327.6,3.00516]
[1722418854195,2.3472,3328.0,3327.6,3.606202]
[1722418854395,3.4542,3328.0,3327.8,3.00495]
[1722418854668,1.107,3328.0,3327.8,3.00495]
[1722418854802,2.295,3328.7,3328.2,3.00462]
[1722418854992,3.402,3328.7,3328.2,3.00462]
[1722418855196,1.107,3328.7,3328.3,3.00447]
[1722418855437,2.295,3329.0,3328.4,3.00443]
[1722418855639,3.402,3329.0,3328.6,3.00424]
[1722418855850,7.48,3329.1,3328.7,3.00411]
[1722418856137,7.48,3329.1,3328.8,3.00408]
[1722418857141,7.48,3329.1,3328.9,3.00397]
[1722418857339,2.4807,3329.4,3328.9,3.00397]
[1722418857713,2.4807,3329.4,3328.6,3.00422]
[1722418857714,6.780646,3329.4,3328.6,3.00422]
[1722418857909,3.777106,3329.4,3328.5,0.06008118]
[1722418858207,2.4807,3329.4,3328.8,3.00401]
[1722418858623,2.4807,3329.4,3328.9,3.00396]
[1722418859409,7.48,3329.6,3329.0,3.00388]
[1722418859627,8.793929,3329.6,3329.0,3.00388]
[1722418860911,8.793929,3329.6,3329.1,3.00381]
[1722418861110,2.2745,3329.8,3329.1,0.06007535]
[1722418861417,7.48,3330.1,3329.6,3.00331]
[1722418861619,7.48,3330.1,3329.7,3.0032]
[1722418861951,7.48,3330.1,3329.6,3.00331]
[1722418862252,7.48,3330.1,3329.7,3.00326]
[1722418863322,7.48,3330.1,3329.9,3.00303]
[1722418863520,2.2791,3330.5,3329.9,3.00303]
[1722418863734,2.2791,3330.5,3330.1,3.00285]
[1722418864005,2.2791,3330.5,3329.7,6.00642]
[1722418864203,2.2791,3330.5,3329.7,3.00319]
[1722418864623,7.48,3330.6,3330.2,3.00276]
[1722418868214,7.48,3330.6,3330.0,3.00299]
[1722418870114,7.48,3330.6,3330.1,3.00291]
[1722418870454,3.00233,3330.8,3330.1,3.00291]
[1722418871263,4.616376,3330.8,3329.8,3.00314]
[1722418871555,4.616376,3330.8,3330.0,3.00299]
[1722418871860,6.0047,3330.8,3330.0,3.00299]
[1722418872162,3.00233,3330.8,3330.1,3.00285]
[1722418872713,13.13811,3331.0,3330.2,3.00281]
[1722418872911,16.14029,3331.0,3330.2,3.60339]
[1722418873111,13.13811,3331.0,3330.2,3.00281]
[1722418873651,3.00228,3330.8,3330.1,5.4102]
[1722418873814,3.00228,3330.8,3330.1,3.0029]
[1722418877646,3.00237,3330.7,3329.9,3.00302]
[1722418877849,3.00237,3330.7,3330.0,3.00295]
[1722418878049,3.00226,3330.9,3330.1,3.0029]
[1722418878314,13.13814,3331.0,3330.1,3.0029]
[1722418878515,3.00233,3330.8,3330.1,3.0029]
[1722418880971,3.00242,3330.7,3329.9,3.544042]
[1722418881265,1.106,3330.4,3330.0,3.00298]
[1722418881616,1.106,3330.4,3330.1,3.00285]
[1722418883834,1.106,3330.4,3330.0,3.6576922]
[1722418884146,1.106,3330.4,3330.1,3.0029]
[1722418884758,1.106,3330.4,3330.0,0.06005333]
[1722418884948,1.106,3330.4,3329.9,3.003]
[1722418885535,1.106,3330.4,3330.0,3.00299]
[1722418885682,1.106,3330.2,3329.7,5.41055]
[1722418885884,1.106,3330.2,3329.7,3.844636]
[1722418886754,1.106,3330.2,3329.7,3.00325]
[1722418886939,1.106,3330.2,3329.8,3.00316]
[1722418888577,1.106,3330.4,3329.9,3.00303]
[1722418888784,1.106,3330.4,3330.0,3.00293]
[1722418888987,1.106,3330.6,3330.1,0.600596]
[1722418889192,1.106,3330.4,3330.0,3.00293]
[1722418890789,1.106,3330.4,3329.9,3.00308]
[1722418891077,1.106,3330.4,3330.1,3.0029]
[1722418894557,1.106,3330.4,3329.6,1.106]
[1722418894558,1.106,3330.2,3329.6,3.00335]
[1722418894888,1.106,3330.2,3329.4,5.2698]
[1722418894889,1.106,3330.2,3329.8,3.00311]
[1722418895099,1.106,3330.4,3329.9,0.300311]
[1722418895386,1.106,3330.4,3330.0,3.00295]
[1722418896092,6.00485,3330.7,3330.0,3.00295]
[1722418896390,1.106,3330.4,3330.0,3.00295]
[1722418896692,1.106,3330.4,3329.9,3.00307]
[1722418896895,1.106,3330.4,3329.9,3.303385]
[1722418898146,1.106,3330.4,3330.0,3.00298]
[1722418899784,1.106,3330.4,3330.2,3.00282]
[1722418902368,1.106,3330.4,3330.0,5.35418519]
[1722418902570,1.106,3330.4,3330.0,5.91964021]
[1722418902997,1.106,3330.4,3330.1,3.00286]
[1722418903560,1.106,3330.6,3330.1,3.00286]
[1722418904055,1.106,3330.4,3330.1,3.00286]
[1722418904296,1.106,3330.4,3330.1,3.92515534]
[1722418906064,1.106,3330.6,3330.1,3.92515534]
[1722418906602,4.10846,3330.6,3330.1,0.92229534]
[1722418906807,1.106,3330.4,3329.8,3.0031]
[1722418906951,1.106,3330.4,3329.7,5.32142]
[1722418907155,4.10864,3330.4,3329.8,3.00313]
[1722418907398,1.106,3330.2,3329.9,0.832455]
[1722418907605,1.106,3330.2,3329.7,5.32147]
[1722418907901,1.106,3330.2,3329.4,5.3182]
[1722418908052,1.106,3330.2,3329.4,2.3182]
[1722418908251,1.106,3330.2,3329.5,0.53182]
[1722418908491,1.106,3330.0,3329.5,3.53182]
[1722418908696,1.106,3330.0,3329.5,3.0]
[1722418908896,1.106,3329.8,3329.3,3.00357]
[1722418909457,4.10921,3329.8,3329.1,5.39615]
[1722418909694,4.10921,3329.8,3329.2,3.543325]
[1722418910364,1.106,3329.4,3328.9,3.00399]
[1722418911306,4.10955,3329.4,3328.8,3.00408]
[1722418911457,4.10955,3329.4,3328.9,0.541248]
[1722418912158,4.10955,3329.4,3328.9,3.541248]
[1722418912360,4.10955,3329.4,3328.9,3.0]
[1722418912590,3.00363,3329.3,3328.7,3.0]
[1722418912797,3.00363,3329.3,3328.7,6.00417]
[1722418913900,1.106,3329.4,3328.7,6.00409]
[1722418914063,1.106,3329.4,3328.9,3.00398]
[1722418914261,1.106,3329.4,3329.0,3.00389]
[1722418914973,1.106,3329.6,3329.0,3.00389]
[1722418915376,1.106,3329.6,3329.1,3.00381]
[1722418915782,3.0031,3329.9,3329.3,3.00362]
[1722418915979,1.106,3329.7,3329.2,2.3325]
[1722418916886,1.106,3329.7,3329.1,3.00373]
[1722418917083,1.106,3329.7,3329.1,3.34014689]
[1722418917600,1.106,3329.7,3329.2,3.00371]
[1722418919708,1.106,3329.7,3329.1,0.33641689]
[1722418920108,1.106,3329.7,3329.1,3.34017689]
[1722418920310,1.106,3329.5,3329.1,3.34017689]
[1722418920808,1.106,3329.5,3329.2,0.33401769]
[1722418922312,1.106,3329.5,3329.1,3.34016689]
[1722418922473,1.106,3329.5,3329.1,0.33641689]
[1722418923156,4.10945,3329.5,3328.8,0.600409]
[1722418923294,1.106,3329.3,3328.8,3.604479]
[1722418923605,1.106,3329.3,3328.8,0.600409]
[1722418923806,4.10968,3329.3,3328.8,0.600409]
[1722418924015,1.106,3329.1,3328.6,3.0]
[1722418924780,4.10964,3329.3,3328.7,3.00412]
[1722418925488,3.0035,3329.5,3328.8,0.600412]
[1722418925489,1.106,3329.4,3328.8,0.600412]
[1722418925690,1.106,3329.4,3328.9,3.00393]
[1722418925897,1.106,3329.4,3329.0,3.00389]
[1722418926195,1.106,3329.4,3329.1,3.00381]
[1722418926412,8.586,3329.7,3329.1,3.00376]
[1722418926728,8.586,3329.7,3329.3,3.00363]
[1722418927838,11.58932,3329.7,3329.2,0.3063832]
[1722418928001,4.10945,3329.5,3328.9,3.00393]
[1722418928200,1.106,3329.3,3328.9,3.00393]
[1722418928404,1.106,3329.3,3328.7,6.00823]
[1722418928737,1.106,3329.3,3328.9,3.00393]
[1722418928945,1.106,3329.3,3329.0,0.300393]
[1722418929245,1.106,3329.3,3329.0,3.304283]
[1722418930556,1.106,3329.5,3329.1,3.0038]
[1722418933425,1.106,3329.5,3329.0,0.300393]
[1722418933759,3.4946,3329.3,3328.8,3.00401]
[1722418933955,3.4946,3329.3,3328.7,3.00416]
[1722418934319,6.4983,3329.3,3328.7,3.00416]
[1722418934588,1.106,3329.1,3328.7,3.00416]
[1722418934725,1.106,3329.1,3328.8,0.600416]
[1722418937161,1.106,3328.9,3328.5,2.251]
[1722418937370,1.106,3328.9,3328.4,3.00444]
[1722418938189,1.106,3328.9,3328.5,3.00433]
[1722418938471,1.106,3328.9,3328.6,0.300433]
[1722418938673,1.106,3328.9,3328.6,3.304693]
[1722418938967,1.106,3329.1,3328.6,3.304693]
[1722418940046,1.106,3329.1,3328.7,3.00415]
[1722418940370,1.106,3329.1,3328.7,3.6350343]
[1722418940944,1.106,3329.1,3328.7,0.6308843]
[1722418941149,1.106,3329.1,3328.5,3.0043]
[1722418941677,1.106,3329.1,3328.6,3.00425]
[1722418943847,1.106,3328.9,3328.2,3.00457]
[1722418944152,1.106,3328.9,3328.3,3.0]
[1722418945655,1.106,3328.9,3328.4,3.00444]
[1722418946070,1.106,3328.5,3327.9,3.00486]
[1722418946389,1.106,3328.3,3327.9,3.853123]
[1722418946565,1.106,3328.3,3327.9,3.00488]
[1722418947193,1.106,3328.3,3327.8,3.00497]
[1722418948456,1.106,3328.3,3327.9,3.00481]
[1722418950710,1.106,3328.3,3327.8,3.00497]
[1722418951017,1.106,3328.3,3327.8,6.610911]
[1722418951188,1.106,3328.3,3327.9,3.00488]
[1722418952186,3.00435,3328.5,3328.0,3.00478]
[1722418952187,1.106,3328.5,3328.0,3.00478]
[1722418952386,1.106,3328.5,3328.2,3.00461]
[1722418952609,3.5606,3328.7,3328.2,3.00461]
[1722418959513,3.5606,3328.7,3328.0,3.00475]
[1722418960042,6.56482,3328.7,3328.0,3.36889612]
[1722418960602,1.106,3328.5,3328.0,3.36889612]
[1722418962134,1.106,3328.5,3328.0,3.36888612]
[1722418967565,2.4546,3328.7,3328.1,0.06008967]
[1722418967769,7.48,3328.9,3328.2,0.15302358]
[1722418967968,7.48,3328.9,3328.6,3.0042]
[1722418968175,7.48,3328.9,3328.6,3.00419]
[1722418968486,7.48,3328.9,3328.7,3.00413]
[1722418968688,7.48,3328.9,3328.6,3.00426]
[1722418968837,7.48,3328.9,3328.7,0.30643406]
[1722418970149,7.48,3328.9,3328.7,0.25643406]
[1722418970573,7.48,3328.9,3328.7,3.32068466]
[1722418970900,7.48,3328.9,3328.8,3.00408]
[1722418971442,1.106,3329.5,3328.9,3.00394]
[1722418971986,1.106,3329.5,3329.0,3.0039]
[1722418972288,9.7715,3329.7,3329.2,3.00372]
[1722418972484,10.8775,3329.7,3329.1,3.0038]
[1722418972788,10.8775,3329.7,3329.2,3.00371]
[1722418974088,8.586,3329.7,3329.2,3.00371]
[1722418976163,8.586,3329.7,3329.2,3.00367]
[1722418977474,1.106,3329.5,3329.2,3.00367]
[1722418978707,1.106,3329.3,3328.8,3.28024082]
[1722418978885,1.106,3329.3,3328.9,3.0]
[1722418979995,1.106,3329.3,3328.9,6.06400707]
[1722418980198,1.106,3329.3,3328.9,3.0]
[1722418980438,1.106,3329.3,3328.9,0.32762108]
[1722418980754,1.106,3329.3,3329.0,3.00389]
[1722418981341,1.106,3329.3,3328.8,3.00407]
[1722418981500,1.106,3329.3,3328.9,3.0]
[1722418982093,1.106,3329.3,3328.9,6.00394]
[1722418982434,1.106,3329.3,3328.9,3.0]
[1722418982600,1.106,3329.3,3328.8,6.004]
[1722418983978,1.106,3329.3,3328.9,3.00394]
[1722418986161,1.106,3329.3,3328.8,3.0]
[1722418987335,4.10964,3329.3,3328.8,3.0]
[1722418987750,1.106,3328.9,3328.2,3.00457]
[1722418988060,1.106,3328.7,3328.3,3.00448]
[1722418988653,1.106,3328.7,3328.3,3.00447]
[1722418989241,1.106,3328.7,3328.4,3.00438]
[1722418989591,2.3985,3328.9,3328.6,6.00842]
[1722418989592,1.106,3328.9,3328.6,6.00842]
[1722418989871,1.106,3328.9,3328.6,3.00421]
[1722418990243,1.106,3328.9,3328.4,3.00436]
[1722418990494,1.106,3328.9,3328.1,2.3127]
[1722418990495,1.106,3328.9,3328.7,3.00411]
[1722418990640,1.106,3328.9,3328.5,3.00427]
[1722418991067,1.106,3328.9,3328.7,3.00417]
[1722418991264,1.106,3329.1,3328.7,3.00417]
[1722418992112,1.106,3329.1,3328.7,3.00412]
[1722418992276,1.106,3329.1,3328.2,3.0046]
[1722418992277,2.492,3329.5,3329.0,3.00385]
[1722418992474,3.598,3329.5,3329.0,3.00385]
[1722418993007,1.106,3329.5,3329.1,0.06007308]
[1722418993213,1.106,3329.5,3329.2,3.00367]
[1722418995892,1.106,3329.5,3329.2,3.00366]
[1722418996379,1.106,3329.5,3329.0,3.00382]
[1722418996709,1.106,3329.5,3329.0,6.00766]
[1722418996877,1.106,3329.5,3329.0,3.00382]
[1722418997667,3.5001,3329.3,3328.8,3.00402]
[1722418998096,1.106,3329.1,3328.8,3.00402]
[1722418999332,3.5001,3329.3,3328.8,3.00402]
[1722419000574,6.50374,3329.3,3328.8,3.00402]
[1722419000733,3.5001,3329.3,3328.8,3.00402]
[1722419002675,1.5001,3329.3,3328.8,3.00402]
[1722419007356,1.106,3329.3,3328.8,3.00402]
[1722419008370,1.106,3329.3,3328.3,5.46291]
[1722419008704,1.106,3329.3,3328.9,3.00398]
[1722419011183,1.106,3329.3,3328.8,3.00408]
[1722419011512,1.106,3329.3,3328.9,4.0]
[1722419011870,4.10964,3329.3,3328.9,4.0]
[1722419012269,1.106,3329.3,3328.9,4.0]
[1722419015815,1.106,3329.3,3328.9,7.00398]
[1722419016417,1.106,3329.3,3329.0,3.00388]
[1722419016570,1.106,3329.3,3329.0,8.238666]
[1722419020614,1.106,3329.3,3329.0,5.234786]
[1722419020768,1.106,3329.3,3329.0,4.0]
[1722419021806,1.106,3329.3,3329.0,7.00387]
[1722419022324,1.106,3329.5,3329.0,7.00385]
[1722419022498,2.2701,3329.6,3329.0,7.00383]
[1722419022694,1.106,3329.5,3329.1,0.700385]
[1722419022934,1.106,3329.5,3329.2,3.00368]
[1722419023707,1.106,3329.5,3329.1,0.700385]
[1722419023942,1.106,3329.5,3329.0,7.00381]
[1722419024137,1.106,3329.3,3329.0,7.00381]
[1722419024643,1.106,3329.3,3329.0,4.0]
[1722419024829,1.106,3329.3,3328.8,5.34408]
[1722419025015,1.106,3329.3,3328.8,6.542508]
[1722419025218,1.106,3329.3,3328.8,3.538428]
[1722419025622,1.106,3329.3,3328.9,3.00397]
[1722419026802,1.106,3329.3,3329.0,3.00389]
[1722419027604,1.106,3329.3,3328.8,3.538408]
[1722419027799,1.106,3329.3,3328.9,7.3578108]
[1722419031611,1.106,3329.3,3328.9,3.3578108]
[1722419031816,1.106,3329.3,3328.8,3.00403]
[1722419032962,1.106,3329.3,3328.9,3.00399]
[1722419034641,1.106,3329.3,3329.0,4.0]
[1722419039370,1.106,3329.1,3328.4,5.37738]
[1722419039542,1.106,3328.8,3328.6,4.0]
[1722419040391,3.00417,3328.7,3328.6,4.0]
[1722419041251,1.106,3328.8,3328.6,4.0]
[1722419041850,1.106,3328.8,3328.4,3.00444]
[1722419042053,1.106,3328.8,3328.4,3.00438]
[1722419051081,1.106,3328.8,3328.3,2.2907]
[1722419051303,4.11009,3328.8,3328.2,3.00454]
[1722419051468,4.11009,3328.8,3328.0,3.00475]
[1722419051469,4.11026,3328.6,3328.1,3.0047]
[1722419051796,4.11026,3328.6,3328.0,2.2889]
[1722419051997,4.11026,3328.6,3328.1,0.22889]
[1722419053704,1.106,3328.6,3328.1,3.23359]
[1722419054056,1.106,3328.6,3328.2,6.00918]
[1722419054248,3.00394,3329.0,3328.4,5.36288]
[1722419054249,1.106,3329.0,3328.4,5.36288]
[1722419054480,1.106,3329.0,3328.5,3.00431]
[1722419054800,4.10992,3329.0,3328.5,3.00431]
[1722419055291,1.106,3329.0,3328.5,3.00431]
[1722419055801,1.106,3329.0,3328.5,3.9034147]
[1722419055953,1.106,3329.0,3328.5,4.8991147]
[1722419056467,1.106,3329.0,3328.5,7.9034647]
[1722419057686,1.106,3329.0,3328.5,7.9034147]
[1722419058412,1.106,3329.0,3328.5,7.9034047]
[1722419058562,1.106,3329.0,3328.7,3.00417]
[1722419059898,1.106,3329.0,3328.6,3.00423]
[1722419060091,1.106,3329.0,3328.6,4.03042047]
[1722419060524,1.106,3329.0,3328.6,1.02619047]
[1722419061081,1.106,3329.0,3328.5,7.9034147]
[1722419062414,1.106,3329.0,3328.5,3.9034147]
[1722419063412,1.106,3329.0,3328.6,3.00424]
[1722419066712,1.106,3329.0,3328.5,3.9034147]
[1722419067344,1.106,3329.0,3328.5,6.9077147]
[1722419067548,1.106,3329.0,3328.5,3.9034147]
[1722419067710,1.106,3329.0,3328.6,4.0]
[1722419068114,1.106,3329.0,3328.6,7.00426]
[1722419068612,1.106,3329.0,3328.6,3.00426]
[1722419071353,1.106,3329.0,3328.7,3.00417]
[1722419076726,1.106,3329.0,3328.6,3.00426]
[1722419077641,1.106,3329.0,3328.5,3.9034647]
[1722419080546,4.10993,3329.0,3328.5,3.00435]
[1722419081308,1.106,3328.6,3328.1,5.6621]
[1722419081604,1.106,3328.6,3328.3,4.0]
[1722419082180,5.50326,3328.7,3328.3,4.0]
[1722419082181,4.11044,3328.4,3328.3,4.0]
[1722419082395,4.11044,3328.4,3327.8,3.00497]
[1722419082396,3.00456,3328.3,3327.8,3.00497]
[1722419082700,1.106,3328.2,3327.9,4.0]
[1722419082869,1.106,3328.0,3327.9,4.0]
[1722419084769,1.106,3328.0,3327.3,2.4505]
[1722419085001,1.106,3327.8,3327.5,4.0]
[1722419087000,4.11116,3327.6,3327.5,4.0]
[1722419087586,4.11116,3327.6,3327.0,5.30184]
[1722419087792,1.106,3327.4,3327.1,4.530184]
[1722419088676,1.106,3327.4,3327.1,0.530184]
[1722419090086,1.106,3327.6,3327.1,0.530184]
[1722419090281,1.106,3327.6,3327.2,0.6541464]
[1722419092270,1.106,3327.8,3327.2,0.6541464]
[1722419092543,1.106,3327.8,3327.3,2.3999]
[1722419093223,4.11099,3327.8,3327.3,5.40533]
[1722419093779,3.00509,3327.7,3327.3,2.3999]
[1722419094112,1.106,3327.8,3327.3,2.3999]
[1722419094613,4.11104,3327.8,3327.3,2.3999]